bitfinex/quotes_SOLUSD_20240814
["timestamp","ask_amount","ask_price","bid_price","bid_amount"]
[1723642440935,50.98,150.04,149.9,50.0]
[1723642441135,52.30340461,150.04,149.9,50.0]
[1723642441319,50.98,150.01,149.96,6.6684]
[1723642441521,50.98,150.01,149.9,50.0]
[1723642441726,1.32340461,150.0,149.9,50.0]
[1723642441920,57.6479,149.98,149.9,50.0]
[1723642442128,7.99140461,149.97,149.86,6.3652]
[1723642442337,50.98,149.98,149.86,6.3652]
[1723642442509,1.32340461,150.05,149.87,50.98]
[1723642442712,6.92694673,150.06,149.93,50.98]
[1723642443018,8.25035134,150.06,149.97,6.6676]
[1723642443236,6.6649,150.04,149.98,6.6674]
[1723642443413,1.32340461,150.03,149.96,6.6684]
[1723642443607,1.32340461,150.03,149.9,50.98]
[1723642443608,6.92694673,150.06,149.91,1.33377467]
[1723642443838,6.92694673,150.06,149.91,65.0]
[1723642444051,13.59124673,150.06,150.0,6.6662]
[1723642444222,6.92694673,150.06,150.03,6.6651]
[1723642444423,6.92694673,150.06,149.93,50.98]
[1723642444619,50.98,150.13,149.96,50.98]
[1723642444841,6.90970976,150.1,149.97,45.0]
[1723642445053,6.90970976,150.1,149.98,20.0]
[1723642445345,1.32340461,150.1,149.99,45.0]
[1723642445511,6.663,150.09,149.99,45.0]
[1723642445716,6.6631,150.08,150.03,6.6652]
[1723642445932,1.32340461,150.07,150.03,6.6652]
[1723642446141,1.32340461,150.07,149.99,45.0]
[1723642446319,6.6628,150.09,150.03,6.6649]
[1723642446523,6.6633,150.08,149.99,45.0]
[1723642446727,1.32340461,150.07,149.99,45.0]
[1723642446929,6.6644,150.05,150.0,6.6665]
[1723642447138,50.98,150.04,150.0,6.6665]
[1723642447319,57.6439,150.07,150.01,6.6661]
[1723642447514,6.6652,150.04,149.97,6.6676]
[1723642447714,6.6668,150.0,149.94,6.6688]
[1723642447916,16.2344,150.04,150.01,6.6661]
[1723642448219,50.98,150.07,149.9,50.98]
[1723642448446,6.6656,150.03,149.97,6.6676]
[1723642448651,6.6658,150.02,149.96,6.6683]
[1723642448851,6.6676,149.98,149.92,6.6698]
[1723642449143,50.98,149.98,149.91,6.6705]
[1723642449351,50.98,149.98,149.86,6.3652]
[1723642449352,6.6703,149.92,149.86,6.6728]
[1723642449563,1.32340461,149.91,149.87,6.6724]
[1723642450048,1.32340461,149.94,149.85,0.9949951]
[1723642450238,57.6489,149.95,149.85,0.9949951]
[1723642450465,7.99270461,149.94,149.89,6.6715]
[1723642450640,57.6489,149.95,149.89,6.6715]
[1723642450829,6.6701,149.93,149.87,6.6723]
[1723642451042,52.30340461,149.92,149.85,0.9949951]
[1723642451343,57.6528,149.86,149.85,0.9949951]
[1723642451530,50.98,149.86,149.85,0.9949951]
[1723642451730,57.6528,149.86,149.85,0.9949951]
[1723642452350,50.98,149.86,149.85,0.9949951]
[1723642452517,57.6505,149.92,149.85,7.6678951]
[1723642452828,6.6711,149.9,149.85,0.9949951]
[1723642453027,50.98,149.92,149.87,6.6723]
[1723642453244,6.6717,149.89,149.85,0.9949951]
[1723642453444,6.6728,149.86,149.85,0.9949951]
[1723642453651,6.6742,149.83,149.8,42.95081003]
[1723642454163,50.98,149.84,149.8,42.95081003]
[1723642454327,50.98,149.84,149.69,2.67881503]
[1723642454633,50.98,149.84,149.68,57.4488]
[1723642454634,57.6551,149.81,149.75,6.6776]
[1723642454823,1.32340461,149.8,149.75,6.6776]
[1723642455026,50.98,149.81,149.68,6.4688]
[1723642455250,50.98,149.84,149.69,8.91936954]
[1723642455658,6.6747,149.82,149.76,6.6773]
[1723642455845,6.6747,149.82,149.69,8.91936954]
[1723642455846,6.6751,149.81,149.75,6.6773]
[1723642456164,6.6757,149.8,149.74,6.678]
[1723642456464,6.6757,149.8,149.68,6.4688]
[1723642456465,6.6757,149.8,149.73,6.6782]
[1723642456626,1.32340461,149.79,149.72,6.6791]
[1723642456828,1.32340461,149.79,149.73,6.6782]
[1723642456829,6.676,149.79,149.73,6.6782]
[1723642457028,50.98,149.81,149.67,0.9949951]
[1723642457231,6.6755,149.81,149.75,6.6775]
[1723642457988,6.676,149.79,149.67,0.9949951]
[1723642458161,6.6755,149.81,149.75,6.6776]
[1723642458352,6.6771,149.77,149.7,6.6797]
[1723642458535,6.6774,149.76,149.7,6.68]
[1723642458730,6.6774,149.76,149.67,0.9949951]
[1723642458731,6.6783,149.74,149.67,0.9949951]
[1723642459064,1.32340461,149.73,149.69,6.6803]
[1723642459347,1.32340461,149.72,149.67,0.9949951]
[1723642459552,50.98,149.76,149.67,0.9949951]
[1723642459553,52.30340461,149.76,149.67,0.9949951]
[1723642459765,6.6789,149.73,149.67,7.6758951]
[1723642459928,50.98,149.73,149.67,0.9949951]
[1723642460344,6.6783,149.74,149.68,6.6809]
[1723642460549,50.98,149.76,149.67,0.9949951]
[1723642460871,50.98,149.73,149.67,0.9949951]
[1723642461365,52.30340461,149.73,149.67,0.9949951]
[1723642461664,15.9305,149.74,149.67,0.9949951]
[1723642461861,1.32340461,149.73,149.67,0.9949951]
[1723642462368,15.9305,149.74,149.67,0.9949951]
[1723642462660,8.00210461,149.73,149.67,7.6762951]
[1723642462866,15.9305,149.74,149.7,6.6798]
[1723642463064,8.00210461,149.73,149.67,0.9949951]
[1723642463259,8.00210461,149.73,149.67,7.6760951]
[1723642463466,22.609,149.74,149.68,6.6807]
[1723642463763,1.32340461,149.73,149.67,0.9949951]
[1723642464068,1.32340461,149.73,149.61,50.98]
[1723642464069,22.0044,149.63,149.53,8.95842473]
[1723642464248,22.0044,149.63,149.46,9.0130813]
[1723642464249,1.0,149.53,149.46,9.0130813]
[1723642464448,1.0,149.53,149.52,6.688]
[1723642464656,57.663,149.64,149.48,87.0891]
[1723642464971,6.6818,149.66,149.49,37.23425585]
[1723642465177,50.98,149.67,149.5,8.93579653]
[1723642465497,1.32340461,149.67,149.52,6.4882]
[1723642465647,50.98,149.67,149.53,45.0]
[1723642465849,57.6604,149.7,149.54,50.98]
[1723642466068,6.6809,149.68,149.55,45.0]
[1723642466381,50.98,149.61,149.5,11.58720839]
[1723642466579,1.32340461,149.6,149.46,6.1906]
[1723642466751,1.32340461,149.6,149.48,18.73398713]
[1723642466945,50.98,149.64,149.48,38.73398713]
[1723642467241,50.98,149.61,149.48,18.73398713]
[1723642467470,6.6848,149.6,149.46,6.1906]
[1723642467638,50.98,149.61,149.46,6.1906]
[1723642468168,50.98,149.61,149.46,8.90526153]
[1723642468477,50.98,149.58,149.46,6.1906]
[1723642468649,1.32340461,149.57,149.46,6.1906]
[1723642469044,57.6657,149.58,149.46,6.1906]
[1723642469567,50.98,149.58,149.46,6.1906]
[1723642470259,50.98,149.61,149.46,26.1906]
[1723642470567,1.32340461,149.62,149.46,6.1906]
[1723642470768,57.6644,149.61,149.47,45.0]
[1723642470980,6.6858,149.57,149.47,45.0]
[1723642471150,50.98,149.55,149.46,6.1906]
[1723642471353,1.32340461,149.54,149.42,19.0676034]
[1723642471553,50.98,149.52,149.42,16.42]
[1723642471750,52.30340461,149.52,149.42,16.42]
[1723642471955,1.32340461,149.51,149.41,6.2464]
[1723642472160,50.98,149.49,149.41,6.2464]
[1723642472548,1.32340461,149.48,149.41,6.2464]
[1723642472869,50.98,149.49,149.41,6.2464]
[1723642473258,1.32340461,149.48,149.36,24.44568091]
[1723642473842,1.32340461,149.56,149.44,50.78895104]
[1723642474069,50.98,149.59,149.44,50.78895104]
[1723642474479,50.98,149.62,149.44,50.78895104]
[1723642474659,8.00780461,149.61,149.47,50.98]
[1723642474857,6.6846,149.6,149.48,65.0]
[1723642475052,50.98,149.62,149.48,65.0]
[1723642475266,6.91683026,149.63,149.5,50.98]
[1723642475571,15.3435,149.69,149.53,50.98]
[1723642475754,15.3435,149.69,149.54,65.0]
[1723642475949,6.6823,149.65,149.54,65.0]
[1723642476171,57.89226841,149.68,149.54,65.0]
[1723642476374,6.91226841,149.68,149.56,50.98]
[1723642476576,6.91226841,149.68,149.57,65.0]
[1723642476806,50.98,149.74,149.57,65.0]
[1723642477092,6.90924718,149.74,149.59,56.9909]
[1723642477256,6.6799,149.71,149.6,65.0]
[1723642477457,50.98,149.71,149.6,65.0]
[1723642478582,57.88924718,149.74,149.6,65.0]
[1723642478783,6.90924718,149.74,149.62,50.98]
[1723642478992,6.90924718,149.74,149.63,65.0]
[1723642479159,20.0,149.86,149.63,65.0]
[1723642479160,22.5154,149.83,149.65,50.98]
[1723642479360,22.5154,149.83,149.66,66.33587701]
[1723642479583,6.90603278,149.8,149.68,50.98]
[1723642479781,6.90603278,149.8,149.69,65.0]
[1723642479782,1.32340461,149.79,149.69,65.0]
[1723642479959,6.90603278,149.8,149.69,65.0]
[1723642480660,6.90603278,149.8,149.6,15.1946]
[1723642480661,6.6778,149.75,149.6,15.1946]
[1723642480863,6.6795,149.72,149.6,15.1946]
[1723642481065,1.32340461,149.71,149.6,15.1946]
[1723642481261,1.32340461,149.7,149.57,50.98]
[1723642481862,1.32340461,149.7,149.53,15.1607]
[1723642481863,50.98,149.69,149.54,50.98]
[1723642482489,1.32340461,149.68,149.54,50.98]
[1723642482694,1.32340461,149.67,149.54,50.98]
[1723642482890,50.98,149.66,149.53,21.5283]
[1723642483262,16.7001,149.7,149.52,9.20631208]
[1723642483263,50.98,149.63,149.52,9.20631208]
[1723642483691,50.98,149.63,149.48,50.98]
[1723642483879,50.98,149.6,149.47,6.3676]
[1723642484185,20.0,149.62,149.51,50.98]
[1723642484392,50.98,149.68,149.54,50.98]
[1723642484603,15.3238,149.7,149.54,50.98]
[1723642484771,6.6809,149.68,149.54,50.98]
[1723642485092,50.98,149.68,149.51,50.98]
[1723642485395,50.98,149.68,149.47,6.3676]
[1723642485396,50.98,149.65,149.52,20.0]
[1723642485574,32.0248,149.7,149.47,6.3676]
[1723642485575,50.98,149.62,149.47,6.3676]
[1723642485778,50.98,149.68,149.47,6.3676]
[1723642485779,50.98,149.59,149.47,6.3676]
[1723642485977,50.98,149.62,149.47,6.3676]
[1723642486177,20.0,149.61,149.48,50.98]
[1723642486383,50.98,149.65,149.48,50.98]
[1723642486567,57.6612,149.68,149.54,50.98]
[1723642486909,6.6823,149.65,149.54,50.98]
[1723642487101,6.6831,149.63,149.55,20.0]
[1723642487263,6.6831,149.63,149.52,20.0]
[1723642487585,6.6831,149.63,149.48,50.98]
[1723642487586,8.00640461,149.64,149.49,20.0]
[1723642487766,50.98,149.65,149.49,20.0]
[1723642487767,6.6844,149.61,149.49,20.0]
[1723642487966,20.0,149.63,149.48,20.0]
[1723642488173,50.98,149.59,149.48,20.0]
[1723642488372,1.32340461,149.58,149.46,9.16916823]
[1723642488594,21.32340461,149.58,149.49,9.56927804]
[1723642488791,50.98,149.56,149.49,9.56927804]
[1723642489094,57.6663,149.56,149.49,9.56927804]
[1723642489275,20.0,149.55,149.49,9.56927804]
[1723642489485,26.6867,149.55,149.49,9.56927804]
[1723642489690,20.0,149.55,149.49,9.56927804]
[1723642489877,50.98,149.53,149.49,9.56927804]
[1723642490080,6.6888,149.51,149.42,9.73361132]
[1723642490278,1.32340461,149.5,149.42,9.73361132]
[1723642490609,52.30340461,149.5,149.42,9.73361132]
[1723642490894,72.30340461,149.5,149.42,9.73361132]
[1723642491065,78.99240461,149.5,149.42,9.73361132]
[1723642491270,72.30340461,149.5,149.42,9.73361132]
[1723642491491,6.6906,149.47,149.42,9.73361132]
[1723642491694,20.0,149.5,149.42,9.73361132]
[1723642492070,67.7048,149.48,149.33,6.91745037]
[1723642492373,50.98,149.45,149.27,78.2789231]
[1723642492597,50.98,149.45,149.27,60.87048065]
[1723642492774,50.98,149.39,149.27,7.2989231]
[1723642494078,50.98,149.33,149.27,1.1693231]
[1723642494401,1.32340461,149.32,149.27,1.1693231]
[1723642494577,1.32340461,149.31,149.27,1.1693231]
[1723642494921,50.98,149.42,149.27,1.1693231]
[1723642495199,35.8429,149.44,149.29,50.98]
[1723642495200,20.0,149.44,149.29,50.98]
[1723642495407,6.693,149.41,149.27,1.1693231]
[1723642495571,50.98,149.42,149.27,1.1693231]
[1723642495993,52.30340461,149.42,149.27,1.1693231]
[1723642496377,50.98,149.42,149.27,1.1693231]
[1723642496876,6.6927,149.42,149.28,50.98]
[1723642497092,50.98,149.4,149.29,20.0]
[1723642497295,50.98,149.4,149.27,1.1693231]
[1723642497505,52.30340461,149.44,149.27,1.1693231]
[1723642497708,57.6719,149.44,149.27,1.1693231]
[1723642498007,1.32340461,149.43,149.27,52.1493231]
[1723642498205,50.98,149.44,149.3,50.98]
[1723642498386,50.98,149.47,149.31,65.0]
[1723642498598,57.6706,149.47,149.31,65.0]
[1723642498796,52.30340461,149.51,149.33,50.98]
[1723642499009,6.6907,149.46,149.34,65.0]
[1723642499181,50.98,149.51,149.34,65.0]
[1723642499392,57.89886324,149.54,149.36,50.98]
[1723642499618,57.89886324,149.54,149.37,65.0]
[1723642499790,6.6881,149.52,149.37,65.0]
[1723642499987,6.6891,149.5,149.37,65.0]
[1723642500214,6.6895,149.49,149.37,65.0]
[1723642500410,6.89731922,149.5,149.37,65.0]
[1723642500619,6.89731922,149.5,149.39,50.98]
[1723642500832,6.6864,149.56,149.42,50.98]
[1723642501120,13.58441339,149.54,149.43,45.0]
[1723642501291,6.89701339,149.54,149.44,1.33813649]
[1723642501488,1.32340461,149.54,149.44,20.0]
[1723642501727,50.98,149.49,149.35,6.0166]
[1723642502021,50.98,149.46,149.35,6.0166]
[1723642502198,57.6697,149.49,149.35,6.0166]
[1723642502410,50.98,149.49,149.35,6.0166]
[1723642502588,1.32340461,149.51,149.29,15.8406]
[1723642502589,50.98,149.43,149.29,22.3376]
[1723642502789,50.98,149.43,149.17,60.6558789]
[1723642502790,50.98,149.4,149.21,21.33918378]
[1723642503031,50.98,149.37,149.2,70.98]
[1723642503216,15.2126,149.42,149.25,20.0]
[1723642503386,6.6925,149.42,149.26,57.0641]
[1723642503822,1.32340461,149.42,149.27,52.1493231]
[1723642504021,1.32340461,149.41,149.27,1.1693231]
[1723642504318,50.98,149.37,149.27,1.1693231]
[1723642504515,6.6957,149.35,149.27,1.1693231]
[1723642504729,6.6961,149.34,149.27,1.1693231]
[1723642504904,1.32340461,149.33,149.27,1.1693231]
[1723642505236,50.98,149.31,149.27,1.1693231]
[1723642505429,57.6788,149.28,149.27,1.1693231]
[1723642505719,50.98,149.28,149.27,1.1693231]
[1723642505930,57.6774,149.31,149.27,1.1693231]
[1723642506104,57.0677,149.34,149.27,1.1693231]
[1723642506292,6.697,149.32,149.27,1.1693231]
[1723642506493,50.98,149.34,149.27,1.1693231]
[1723642507015,50.98,149.37,149.27,1.1693231]
[1723642507218,50.98,149.31,149.27,1.1693231]
[1723642507427,57.6788,149.28,149.27,1.1693231]
[1723642508292,6.701,149.24,149.1,57.6223]
[1723642508513,1.32340461,149.24,149.1,57.6223]
[1723642508794,16.7456,149.3,149.1,57.6223]
[1723642508795,6.7025,149.2,149.1,6.6423]
[1723642509022,6.7039,149.17,149.05,1.2369607]
[1723642509222,6.7039,149.17,149.08,6.9057977]
[1723642509223,50.98,149.17,149.08,6.9057977]
[1723642509444,59.00710461,149.17,149.05,1.2369607]
[1723642509626,50.98,149.23,149.06,50.98]
[1723642509790,58.45700461,149.26,149.09,50.98]
[1723642510130,58.45700461,149.26,149.05,21.2369607]
[1723642510131,50.98,149.26,149.12,50.98]
[1723642510297,50.98,149.26,149.1,1.34096672]
[1723642510298,1.32340461,149.25,149.1,20.0]
[1723642510494,1.32340461,149.25,149.05,1.2369607]
[1723642510495,50.98,149.2,149.05,1.2369607]
[1723642510692,57.6837,149.17,149.05,1.2369607]
[1723642510902,1.32340461,149.16,149.05,1.2369607]
[1723642511091,57.6837,149.17,149.05,1.2369607]
[1723642511092,50.98,149.2,149.05,1.2369607]
[1723642511524,50.98,149.14,149.05,1.2369607]
[1723642511722,77.0366,149.2,149.05,1.2369607]
[1723642511723,50.98,149.1,149.05,1.2369607]
[1723642512294,65.92484162,149.1,149.05,1.2369607]
[1723642512610,57.89453701,149.1,149.05,1.2369607]
[1723642513421,6.91453701,149.1,149.05,1.2369607]
[1723642513790,57.0366,149.2,149.05,1.2369607]
[1723642513989,6.9115571,149.16,149.05,52.2169607]
[1723642514201,15.6146,149.22,149.05,52.2169607]
[1723642514202,15.6146,149.22,149.08,50.98]
[1723642514419,15.6146,149.22,149.06,20.0]
[1723642514420,6.91058379,149.21,149.09,45.0]
[1723642514619,6.91058379,149.21,149.09,57.1641]
[1723642514825,6.91058379,149.21,149.1,65.0]
[1723642515042,1.32340461,149.2,149.1,65.0]
[1723642515421,6.91058379,149.21,149.1,65.0]
[1723642515624,6.91058379,149.21,149.11,52.32092017]
[1723642515925,50.98,149.32,149.17,50.98]
[1723642516120,52.30340461,149.32,149.18,65.0]
[1723642516445,6.698,149.3,149.18,65.0]
[1723642516742,50.98,149.27,149.08,20.0]
[1723642516949,50.98,149.27,149.14,50.98]
[1723642517250,6.91323603,149.31,149.1,20.0]
[1723642517251,6.91323603,149.31,149.17,50.98]
[1723642517414,6.7,149.26,149.14,50.98]
[1723642517613,1.32340461,149.25,149.11,50.98]
[1723642517812,1.32340461,149.25,149.12,20.0]
[1723642517813,6.702,149.21,149.12,20.0]
[1723642518064,50.98,149.21,149.03,20.0]
[1723642518350,50.98,149.27,149.13,50.98]
[1723642518516,50.98,149.3,149.16,50.98]
[1723642518712,6.6992,149.27,149.13,50.98]
[1723642519028,6.6992,149.27,149.1,50.98]
[1723642519029,1.32340461,149.26,149.1,50.98]
[1723642519224,50.98,149.24,149.11,20.0]
[1723642519554,50.98,149.27,149.1,70.98]
[1723642519713,50.98,149.3,149.13,50.98]
[1723642519917,57.6783,149.3,149.16,50.98]
[1723642520226,6.6989,149.28,149.17,20.0]
[1723642520423,57.6782,149.3,149.17,65.0]
[1723642520642,6.91323603,149.31,149.17,65.0]
[1723642521022,6.6984,149.29,149.17,65.0]
[1723642521341,1.32340461,149.28,149.17,65.0]
[1723642521511,8.02220461,149.28,149.17,65.0]
[1723642521714,52.30340461,149.27,149.17,45.0]
[1723642522018,50.98,149.27,149.09,77.1641]
[1723642522218,59.00160461,149.3,149.13,20.0]
[1723642522415,59.00160461,149.3,149.12,50.98]
[1723642522416,6.91323603,149.31,149.18,50.98]
[1723642522635,6.91323603,149.31,149.19,20.0]
[1723642522854,6.6948,149.37,149.21,57.6166]
[1723642523015,6.6961,149.34,149.22,20.0]
[1723642523217,59.21330706,149.33,149.21,6.6366]
[1723642523512,59.21330706,149.33,149.09,20.0]
[1723642523513,50.98,149.24,149.06,6.6366]
[1723642523713,50.98,149.27,149.11,50.98]
[1723642524020,57.6816,149.22,149.06,6.6366]
[1723642524321,50.98,149.25,149.09,50.98]
[1723642524532,50.98,149.25,149.09,70.98]
[1723642524720,50.98,149.28,149.12,70.98]
[1723642525330,8.23330706,149.33,149.18,50.98]
[1723642525331,6.90990245,149.33,149.18,50.98]
[1723642525517,1.32340461,149.32,149.19,20.0]
[1723642525927,50.98,149.31,149.2,45.0]
[1723642526117,6.90990245,149.33,149.2,45.0]
[1723642526525,6.90990245,149.33,149.2,45.1656853]
[1723642526947,1.32340461,149.32,149.21,20.0]
[1723642527140,50.98,149.37,149.22,45.0]
[1723642527351,50.98,149.37,149.23,20.0]
[1723642527528,6.90709391,149.36,149.24,45.0]
[1723642528129,6.90709391,149.36,149.25,20.0]
[1723642528325,57.0457,149.47,149.3,50.98]
[1723642528635,6.90866449,149.42,149.31,65.0]
[1723642528953,6.6912,149.45,149.31,65.0]
[1723642528954,1.32340461,149.45,149.31,65.0]
[1723642529128,13.59803228,149.45,149.31,65.0]
[1723642529325,6.90683228,149.45,149.31,65.0]
[1723642529552,26.817648,149.51,149.36,50.98]
[1723642529742,1.32340461,149.5,149.37,65.0]
[1723642529944,50.98,149.43,149.29,9.11172974]
[1723642530130,1.32340461,149.42,149.3,20.0]
[1723642530333,57.6708,149.46,149.3,20.0]
[1723642530635,8.01320461,149.48,149.32,50.98]
[1723642530842,6.688,149.52,149.38,50.98]
[1723642531021,6.90659947,149.51,149.39,20.0]
[1723642531349,6.90659947,149.51,149.4,45.0]
[1723642531738,8.01130461,149.53,149.41,20.0]
[1723642531953,6.90804465,149.54,149.42,45.0]
[1723642532333,6.6853,149.59,149.44,50.98]
[1723642532657,50.98,149.63,149.45,65.0]
[1723642532950,6.9071705,149.58,149.45,65.0]
[1723642533119,1.32340461,149.57,149.45,65.0]
[1723642533324,6.90657131,149.62,149.45,65.0]
[1723642533530,6.684,149.61,149.47,50.98]
[1723642533752,6.90657131,149.62,149.48,65.0]
[1723642534057,8.00770461,149.61,149.5,50.98]
[1723642534349,1.32340461,149.61,149.51,45.0]
[1723642534555,6.90657131,149.62,149.51,45.0]
[1723642535133,1.32340461,149.61,149.51,45.0]
[1723642535357,6.90657131,149.62,149.51,45.0]
[1723642535649,6.91058601,149.64,149.53,50.98]
[1723642535951,0.6727417,149.65,149.54,45.0]
[1723642536158,1.32340461,149.64,149.54,45.0]
[1723642536544,0.6727417,149.65,149.54,45.0]
[1723642537162,0.6727417,149.65,149.56,50.98]
[1723642537342,0.6727417,149.65,149.57,65.0]
[1723642538133,0.6727417,149.65,149.58,50.98]
[1723642538456,0.6727417,149.65,149.59,45.0]
[1723642538762,0.6727417,149.65,149.61,50.98]
[1723642539066,0.6727417,149.65,149.62,45.0]
[1723642539231,0.6727417,149.65,149.61,45.0]
[1723642539435,0.6727417,149.65,149.59,95.98]
[1723642539637,33.50062433,149.9,149.59,95.98]
[1723642539638,57.6569,149.77,149.62,50.98]
[1723642539838,50.98,149.77,149.63,65.0]
[1723642540055,57.89065218,149.77,149.63,65.0]
[1723642540238,6.91065218,149.77,149.65,50.98]
[1723642540556,0.838427,149.8,149.68,50.98]
[1723642540762,6.676,149.79,149.69,65.0]
[1723642540963,7.75232163,149.8,149.69,65.0]
[1723642540964,14.42802163,149.8,149.69,65.0]
[1723642541127,7.75232163,149.8,149.69,65.0]
[1723642542235,1.32340461,149.79,149.69,45.0]
[1723642542437,7.75232163,149.8,149.69,45.0]
[1723642542927,14.42792163,149.8,149.69,45.0]
[1723642543132,7.75232163,149.8,149.69,45.0]
[1723642543553,7.75232163,149.8,149.7,20.0]
[1723642543769,7.75232163,149.8,149.71,45.0]
[1723642544534,14.42792163,149.8,149.71,45.0]
[1723642545062,14.42782163,149.8,149.71,45.0]
[1723642545259,7.75232163,149.8,149.71,45.0]
[1723642545764,6.676,149.79,149.65,50.98]
[1723642545945,50.98,149.73,149.58,29.06446778]
[1723642546267,50.98,149.7,149.58,9.06446778]
[1723642546439,1.32340461,149.69,149.58,9.06446778]
[1723642546959,50.98,149.7,149.58,9.06446778]
[1723642547569,52.30340461,149.7,149.58,9.06446778]
[1723642547862,50.98,149.7,149.58,9.06446778]
[1723642548084,50.98,149.73,149.58,80.04446778]
[1723642548265,50.98,149.73,149.59,10.56351353]
[1723642548644,50.98,149.73,149.6,20.0]
[1723642548844,1.32340461,149.72,149.61,10.4708462]
[1723642549168,50.98,149.73,149.61,10.4708462]
[1723642549336,57.6587,149.73,149.62,65.0]
[1723642549649,57.6587,149.73,149.63,10.49410668]
[1723642549858,57.6587,149.73,149.64,45.0]
[1723642550040,57.6587,149.73,149.65,10.04114056]
[1723642550242,57.6587,149.73,149.66,45.0]
[1723642550442,57.6587,149.73,149.65,10.04114056]
[1723642550443,1.32340461,149.72,149.67,9.82778105]
[1723642551167,6.6808,149.69,149.67,9.82778105]
[1723642551465,1.32340461,149.69,149.58,9.24839546]
[1723642551637,50.98,149.66,149.58,9.24839546]
[1723642552047,1.32340461,149.65,149.58,9.24839546]
[1723642552260,6.6828,149.64,149.58,9.24839546]
[1723642552462,50.98,149.66,149.58,9.24839546]
[1723642552850,6.6829,149.64,149.58,9.24839546]
[1723642553251,6.6823,149.65,149.58,9.24839546]
[1723642553479,6.6825,149.65,149.58,9.24839546]
[1723642554076,6.6836,149.62,149.58,9.24839546]
[1723642554276,6.6831,149.63,149.52,9.12204583]
[1723642554484,50.98,149.66,149.53,20.0]
[1723642554687,57.6622,149.66,149.53,20.0]
[1723642554855,50.98,149.66,149.53,20.0]
[1723642555051,6.6826,149.65,149.54,9.21090941]
[1723642555354,50.98,149.66,149.54,9.21090941]
[1723642555876,6.6828,149.64,149.54,9.21090941]
[1723642556071,50.98,149.66,149.54,9.21090941]
[1723642556379,50.98,149.69,149.55,115.98]
[1723642556563,57.6606,149.69,149.55,115.98]
[1723642556883,6.90826255,149.71,149.55,115.98]
[1723642556884,6.90826255,149.71,149.58,50.98]
[1723642557051,6.90826255,149.71,149.59,65.0]
[1723642557857,6.6787,149.73,149.59,65.0]
[1723642558052,8.22663493,149.74,149.59,65.0]
[1723642558253,6.6791,149.72,149.59,65.0]
[1723642558673,6.6787,149.73,149.59,85.0]
[1723642558856,1.32340461,149.72,149.59,65.0]
[1723642559051,6.6797,149.71,149.59,65.0]
[1723642559247,6.90323032,149.74,149.56,8.95389592]
[1723642559248,6.681,149.68,149.56,8.95389592]
[1723642559461,57.66,149.7,149.57,20.0]
[1723642559669,50.98,149.73,149.58,50.98]
[1723642560262,50.98,149.73,149.59,20.0]
[1723642560458,50.98,149.73,149.6,45.0]
[1723642560658,57.6587,149.73,149.6,45.0]
[1723642560858,50.98,149.73,149.6,45.0]
[1723642561056,6.6814,149.67,149.59,45.0]
[1723642561257,50.98,149.7,149.59,45.0]
[1723642561648,50.98,149.73,149.6,20.0]
[1723642561862,50.98,149.73,149.61,45.0]
[1723642562055,1.32340461,149.72,149.61,45.0]
[1723642562256,50.98,149.73,149.61,45.0]
[1723642562458,6.6804,149.69,149.61,45.0]
[1723642562677,50.98,149.73,149.61,45.0]